Cogmind - Beta 16 @@@ ROGUE MODE // 2025.11.16 @ 18:48:05 // Winter2019/RPGLIKE Player: Jaegerpls Result: Destroyed by Y-54 Guardian with Flak Gun Performance ------------- Evolutions (4) 2000 Regions Visited (5) 1000 Robots Destroyed (60) 300 Value Destroyed (1702) 1702 Prototype IDs (35) 700 Alien Tech Used (0) 0 Bonus (920) 920 TOTAL SCORE: 6622 Bonus ------- Follower Combat Kills 135 Registered with UFD 300 Met Optimus in HQ 500 Friendly Fire -15 Cogmind --------- Core Integrity 0/750 Matter 300/300 Energy 175/180 System Corruption 0% Temperature Cool (0) Movement Flying (27) Location -6/Factory Parts ------- > --- POWER (1+1) ------ Meta Core > --- PROPULSION (4+1) - Cesium-ion Thruster Nuclear Pulse Thruster (+) Nuclear Pulse Thruster Nuclear Pulse Thruster Nuclear Pulse Thruster > --- UTILITY (6+1) ---- Advanced Sensor Array Advanced Signal Interpreter Experimental Terrain Scanner Surveybot 17 Chip Makeshift System Shield A0-MCA's Component Scanner Power Bank (+) > --- WEAPON (2) ------- Falx Companion Sword > --- INVENTORY (2) ---- Advanced ECM Suite Improved Reaction Control System Peak State ------------ > --- POWER ------------ Micro Nuclear Core Meta Core > --- PROPULSION ------- Nuclear Pulse Thruster Nuclear Pulse Thruster Nuclear Pulse Thruster Nuclear Pulse Thruster Nuclear Pulse Thruster > --- UTILITY ---------- Advanced Sensor Array Advanced Signal Interpreter Experimental Terrain Scanner Surveybot 17 Chip Makeshift System Shield A0-MCA's Component Scanner Power Bank > --- WEAPON ----------- Falx Companion Sword > --- INVENTORY -------- Advanced Melee Analysis Suite Improved Reaction Control System [Rating: 102] Favorites ----------- Power Meta Core Engine Ion Engine Power Core Meta Core Propulsion Light Treads Treads Light Treads Hover Unit Improved Hover Unit Flight Unit Nuclear Pulse Thruster Utility Makeshift System Shield Device Improved Terrain Scanner Storage Medium Matter Pod Processor Targeting Computer Hackware Makeshift System Shield Protection Medium Armor Plating Weapon Light Cannon Energy Gun Subdweller Laser Ballistic Gun Heavy Battle Rifle Ballistic Cannon Light Cannon Impact Weapon Hammer Slashing Weapon Companion Sword Build | -11 -10 -10 -9 -9 -6 ------- Run | Yrd Mat Sub Rec Scr Fac Slots Evolved 9 | 4 . 2 . 1 2 Power . | . . . . . . Propulsion 3 | 1 . . . 1 1 Utility 5 | 2 . 2 . . 1 Weapon 1 | 1 . . . . . Parts Attached 55 | 8 8 9 2 15 13 Power 5 | 1 1 1 . 1 1 Engine 1 | 1 . . . . . Core 4 | . 1 1 . 1 1 Reactor . | . . . . . . Propulsion 16 | 2 . . 2 4 8 Treads 4 | 2 . . 2 . . Leg . | . . . . . . Wheel . | . . . . . . Hover 5 | . . . . 4 1 Flight 7 | . . . . . 7 Utility 22 | 3 5 4 . 6 4 Device 11 | 2 2 2 . 2 3 Storage 2 | 1 . . . 1 . Processor 5 | . 2 . . 2 1 Hackware 1 | . . 1 . . . Protection 3 | . 1 1 . 1 . Artifact . | . . . . . . Weapon 12 | 2 2 4 . 4 . Energy Gun 1 | . . 1 . . . Energy Cannon . | . . . . . . Ballistic Gun 3 | 2 . 1 . . . Ballistic Cannon 4 | . 2 2 . . . Launcher . | . . . . . . Special Weapon . | . . . . . . Impact Weapon 2 | . . . . 2 . Slashing Weapon 2 | . . . . 2 . Piercing Weapon . | . . . . . . Special Melee Weapon . | . . . . . . Unidentified Prototypes 2 | . . 2 . . . Parts Lost 1 | . . . . . 1 Power 1 | . . . . . 1 Propulsion . | . . . . . . Utility . | . . . . . . Weapon . | . . . . . . Highest Loss Streak 1 | . . . . . 1 To Critical Strikes 1 | . . . . . 1 Average Backups 1 | . 1 . 1 . 1 Power . | . . . . . . Propulsion . | . . . . . . Utility . | . . . 1 . 1 Weapon . | . 1 . . . . Tool/Special . | . . . . . . Unused Backups 10 | . 1 2 . 1 6 Power . | . . . . . . Propulsion . | . . . . . . Utility 7 | . . . . 1 6 Weapon 3 | . 1 2 . . . Tool/Special . | . . . . . . Average Slot Usage (%) 80 | . 99 78 68 70 89 Core 7 | . 7 7 6 6 9 Treads 12 | . 25 16 12 9 . Flight 4 | . . . . . 24 Device 16 | . 26 17 12 13 16 Processor 8 | . 1 7 6 7 17 Hackware 4 | . . 4 6 6 5 Protection 2 | . 5 . 6 4 . Ballistic Gun 2 | . 7 . 6 4 . Ballistic Cannon 13 | . 17 20 12 9 . Slashing Weapon 2 | . . . . 1 11 Peak Build Rating 102 | 10 12 44 46 74 102 Average Rating 44 | 7 11 28 44 50 95 On Entrance 31 | . 10 12 44 46 74 Avg Prop Armor Cover (%) . | . . . . . . Naked Turns . | . . . . . . Heaviest Build 38 | 13 16 38 38 38 25 Greatest Support 46 | 40 40 40 46 46 40 Greatest Overweight (x) 1 | 1 . . . 1 1 Average Overweight (x) . | . . . . . . Largest Inventory Capacity 2 | 1 1 1 1 2 2 Average Capacity 1 | . 1 1 1 1 2 Most Carried 2 | 1 1 1 1 2 2 Average Carried 1 | . . . 1 . 1 Final Capacity 2 | 1 1 1 1 2 2 Final Carried 2 | 1 1 1 1 2 2 Class Distribution -------------------- 28% | Derelict-Gunner 23% | Mutant 22% | Gunner 14% | Scout 5% | Derelict-Gladiator Dominant Class ---------------- Mutant | -10/Materials Gunner | -10/Subcaves Derelict-Gunner | -9/Recycling Derelict-Gunner | -9/Scraptown Scout | -6/Factory Resources | -11 -10 -10 -9 -9 -6 ----------- Run | Yrd Mat Sub Rec Scr Fac Matter Collected 2263 | 351 471 995 60 216 170 Remotely 864 | . 385 479 . . . Salvage Created 2221 | 113 323 199 170 . 1416 Parts 113 | 8 28 8 7 . 62 Haulers Intercepted 4 | . 2 . . . 2 Recyclers Shooed . | . . . . . . Parts Field Recycled . | . . . . . . Retrieved Matter . | . . . . . . Parts Self-Destructed 5 | . . 5 . . . Prevented . | . . . . . . Parts Restored . | . . . . . . Kills | -11 -10 -10 -9 -9 -6 ------- Run | Yrd Mat Sub Rec Scr Fac Combat Hostiles Destroyed 36 | . 9 11 2 . 14 Melee 14 | . . . . . 14 Guns 7 | . 7 . . . . Cannons 15 | . 2 11 2 . . Classes Destroyed 15 | 3 5 2 2 . 3 Worker 3 | 2 . . . . 1 Builder 2 | . . . 1 . 1 Tunneler 1 | 1 . . . . . Hauler 4 | . 2 . . . 2 Recycler 6 | 1 1 . 1 . 3 Operator 1 | . 1 . . . . Turret 1 | . . 1 . . . Watcher 6 | . 1 . . . 5 Swarmer 7 | . 3 1 . . 3 Cutter 1 | . . . . . 1 Grunt 10 | . 6 1 . . 3 Sentry 4 | . . . 2 . 2 Hunter 1 | . . . . . 1 Programmer 4 | . . . . . 4 Subdweller 9 | . . 9 . . . Best Kill Streak 7 | 2 3 5 2 . 7 Combat Bots Only 5 | . 3 5 1 . 4 Max Kills in Single Turn 2 | 1 1 1 2 . 1 Gunslinging . | . . . . . . Exploded . | . . . . . . Melee 1 | . . . . . 1 Uniques/NPCs Destroyed . | . . . . . . Combat | -11 -10 -10 -9 -9 -6 -------- Run | Yrd Mat Sub Rec Scr Fac Hostile Shots Fired 328 | . 48 74 3 . 203 Missed 127 | . 15 29 . . 83 Hits 201 | . 33 45 3 . 120 Melee 10 | . . . . . 10 Projectile 191 | . 33 45 3 . 110 AOE 2 | . . . . . 2 Critical Strikes 8 | . . 3 . . 5 Damage Taken 2853 | . 290 1012 41 . 1510 Core 2312 | . 218 823 20 . 1251 Absorbed by Shields . | . . . . . . Redirected to Core 1740 | . 218 677 20 . 825 Core Remaining (%) 100 | 100 . . . 100 . Volleys Fired 158 | 8 44 102 4 . . Largest 3 | 2 2 3 3 . . Hottest 99 | 40 60 93 99 . . Shots Fired 293 | 16 89 176 12 . . Gun 77 | 16 57 . 4 . . Cannon 216 | . 32 176 8 . . Launcher . | . . . . . . Special . | . . . . . . Kinetic 293 | 16 89 176 12 . . Thermal . | . . . . . . Explosive . | . . . . . . Electromagnetic . | . . . . . . Robot Hit Streak 18 | 5 12 18 8 . . Robot Miss Streak 5 | 4 5 2 1 . . Penetration Max . | . . . . . . Secondary Targets 2 | . 2 . . . . Max Gunslinging Chain 1 | . 1 . . . . Shots Hit Robots 208 | 9 51 68 11 . 69 Core Hits 76 | 5 21 19 5 . 26 Critical Kills . | . . . . . . Critical Parts Destroyed 1 | 1 . . . . . Critical Strikes 12 | 1 . 5 . . 6 Destroy 1 | 1 . . . . . Blast 5 | . . 5 . . . Sever 6 | . . . . . 6 Melee Attacks 147 | . . . . . 147 Impact . | . . . . . . Slashing 147 | . . . . . 147 Piercing . | . . . . . . Sneak Attacks 13 | . . . . . 13 Combat Hostiles 3 | . . . . . 3 Follow-up Attacks 14 | . . . . . 14 Damage Inflicted 5859 | 115 692 1226 221 . 3605 Guns 624 | 115 449 . 60 . . Cannons 1630 | . 243 1226 161 . . Explosions . | . . . . . . Melee 3605 | . . . . . 3605 Ramming . | . . . . . . Kinetic 2254 | 115 692 1226 221 . . Thermal . | . . . . . . Explosive . | . . . . . . Electromagnetic . | . . . . . . Impact . | . . . . . . Slashing 3605 | . . . . . 3605 Piercing . | . . . . . . Highest Corruption 2 | . 2 2 2 . 2 Average Corruption 1 | . 2 2 2 . 1 Corruption Purged 2 | . . . . . 2 Corruption Blocked . | . . . . . . Effects 107 | . 14 67 11 . 15 Message Errors 26 | . 1 18 1 . 6 Matter Fused 25 | . 2 15 6 . 2 Heat Flow Errors 21 | . 4 12 1 . 4 Energy Discharges 12 | . 2 8 1 . 1 Parts Fused 1 | . . 1 . . . Data Loss (minor) 15 | . 3 9 1 . 2 Data Loss (major) 3 | . . 2 1 . . Misfires 3 | . 1 2 . . . Alerts 1 | . 1 . . . . Overload Shots . | . . . . . . Overflow Damage 383 | . . 10 . . 373 Projectiles 10 | . . 10 . . . Explosions . | . . . . . . Melee 373 | . . . . . 373 Knockbacks 22 | . 3 18 1 . . Impact . | . . . . . . Kinetic 22 | . 3 18 1 . . Secondary . | . . . . . . Self-Inflicted Damage . | . . . . . . Shots . | . . . . . . Rammed . | . . . . . . Targets Rammed . | . . . . . . Kicked . | . . . . . . Crushed . | . . . . . . Highest Temperature 285 | . 250 285 96 . 267 Average Temperature 63 | . 113 119 14 . 39 Received Heat Transfer 1345 | . 63 1093 9 . 180 Siege Activations . | . . . . . . Martial Activations . | . . . . . . Shielding Activations . | . . . . . . Robots Disrupted . | . . . . . . Combat Hostiles . | . . . . . . Robots Corrupted . | . . . . . . Combat Hostiles . | . . . . . . Parts Fried . | . . . . . . Impact Corruptions . | . . . . . . Robots Melted . | . . . . . . Combat Hostiles . | . . . . . . Parts Melted 3 | . . . 1 . 2 Heat Transferred . | . . . . . . Parts Sabotaged . | . . . . . . Parts Stolen . | . . . . . . Parts Stripped . | . . . . . . Power Chain Reactions . | . . . . . . Alert | -11 -10 -10 -9 -9 -6 ------- Run | Yrd Mat Sub Rec Scr Fac Maximum Alert Level . | . . . . . . Low Security (%) 100 | 100 100 . 100 . 100 Level 1 . | . . . . . . Level 2 . | . . . . . . Level 3 . | . . . . . . Level 4 . | . . . . . . Level 5 . | . . . . . . High Security . | . . . . . . Max Security . | . . . . . . Peak Influence 191 | 10 90 . 26 . 191 Initial 12 | . . . 12 . . Average 26 | 1 14 . 1 . 45 Influence Increases 1224 | 20 313 211 67 . 613 Destroy 0b10 Robot/C 640 | . 180 140 40 . 280 Destroy 0b10 Robot/NC 120 | 20 30 . 10 . 60 Destroy Leader 150 | . 46 10 . . 94 Allied During Kill 17 | . . 16 1 . . Successful Hack 141 | . 39 . 16 . 86 Disable Machine 15 | . 15 . . . . Destroy Structure 36 | . 3 . . . 33 Partial Spotted 30 | . . . . . 30 Lose Combat Pursuer 75 | . . 45 . . 30 Influence Decreases 1187 | 20 313 186 92 . 576 Entered New Map 13 | . . . 13 . . Time Decay 871 | 20 313 66 79 . 393 Lost Ally 153 | . . 120 . . 33 Purge Threat 150 | . . . . . 150 Squads Dispatched 17 | . 2 . . . 15 Investigation 4 | . 1 . . . 3 Extermination 4 | . . . . . 4 Reinforcement 6 | . 1 . . . 5 Assault . | . . . . . . Garrison 3 | . . . . . 3 Intercept . | . . . . . . Searches Triggered . | . . . . . . Construction Impeded . | . . . . . . Haulers Reinforced 1 | . . . . . 1 Active Scanning Responses . | . . . . . . Cargo Convoy Interrupts . | . . . . . . Stealth | -11 -10 -10 -9 -9 -6 --------- Run | Yrd Mat Sub Rec Scr Fac Distress Signals 1 | . . . . . 1 Communications Jammed . | . . . . . . Distress Signals . | . . . . . . Times Spotted 67 | . 15 25 2 . 25 Peak Tracking Total 5 | . 4 5 1 . 5 Tactical Retreats 3 | . . 1 . . 2 Traps | -11 -10 -10 -9 -9 -6 ------- Run | Yrd Mat Sub Rec Scr Fac Traps Triggered 3 | . 2 . . . 1 Indirectly . | . . . . . . Trap Hack Attempts . | . . . . . . Triggered . | . . . . . . Disarmed . | . . . . . . Reprogrammed . | . . . . . . Reused . | . . . . . . Traps Extracted . | . . . . . . Installed . | . . . . . . Triggered . | . . . . . . Machines | -11 -10 -10 -9 -9 -6 ---------- Run | Yrd Mat Sub Rec Scr Fac Machines Disabled 3 | . 1 2 . . . Max in Single Turn 1 | . 1 1 . . . Machines Repaired . | . . . . . . Machines Dismantled . | . . . . . . Machines Sabotaged . | . . . . . . Overloaded Fab Kills . | . . . . . . Hacking | -11 -10 -10 -9 -9 -6 --------- Run | Yrd Mat Sub Rec Scr Fac Machines Accessed 55 | . 9 2 14 10 20 Terminals 22 | . 6 . 6 . 10 Fabricators 3 | . . . . . 3 Repair Stations 1 | . 1 . . . . Recycling Units 12 | . 2 . 6 . 4 Scanalyzers 1 | . . . . . 1 Garrison Access 2 | . . . . . 2 Total Hacks 222 | . 26 12 73 65 46 Successful 169 | . 16 12 52 65 24 Failed 53 | . 10 . 21 . 22 Catastrophic 10 | . . . 3 . 7 Database Lockouts . | . . . . . . Manual 96 | . 22 . 36 . 38 Terminals 75 | . 20 . 27 . 28 Fabricators 3 | . . . . . 3 Repair Stations 1 | . 1 . . . . Recycling Units 33 | . 5 . 22 . 6 Scanalyzers 3 | . . . . . 3 Garrison Access 6 | . . . . . 6 Terminal Hacks 114 | . 4 12 29 65 4 Record 99 | . . 11 24 64 . Robot Analysis 5 | . 2 . 2 . 1 Prototype ID Bank 3 | . . . 2 . 1 Open Door 1 | . . . . 1 . Alert Level 1 | . . . 1 . . Unreport Threat 2 | . . . . . 2 Locate Traps 2 | . 2 . . . . Proto ID Catalog 1 | . . 1 . . . Fabricator Hacks 3 | . . . . . 3 Network Status 2 | . . . . . 2 Build 1 | . . . . . 1 Repair Station Hacks . | . . . . . . Recycling Unit Hacks 9 | . 2 . 7 . . Report Inventory 8 | . 2 . 6 . . Retrieve Components 1 | . . . 1 . . Scanalyzer 1 | . . . . . 1 Retrieve Study 1 | . . . . . 1 Garrison Access Hacks . | . . . . . . Unauthorized Hacks 42 | . 10 . 16 . 16 Terminals 25 | . 7 . 8 . 10 Assimilate 1 | . . . . . 1 Botnet 8 | . 2 . 3 . 3 Operators 1 | . . . 1 . . Skim 15 | . 5 . 4 . 6 Fabricators . | . . . . . . Repair Stations 1 | . 1 . . . . Mechanics 1 | . 1 . . . . Recycling Units 14 | . 2 . 8 . 4 Monitor 1 | . . . 1 . . Reject 9 | . 2 . 6 . 1 Recyclers 1 | . . . 1 . . Fedlink 3 | . . . . . 3 Scanalyzers . | . . . . . . Garrison Access 2 | . . . . . 2 Broadcast 2 | . . . . . 2 Data Cores Recovered . | . . . . . . Used . | . . . . . . Hacking Detections 30 | . 6 . 8 . 16 Full Trace Events 1 | . 1 . . . . Feedback Events . | . . . . . . Feedback Blocked . | . . . . . . Robot Schematics Acquired . | . . . . . . Robots Built 2 | . . . . . 2 Authchips . | . . . . . . Time 44 | . . . . . 44 Total Robot Build Rating 8 | . . . . . 8 Part Schematics Acquired . | . . . . . . Parts Built . | . . . . . . Authchips . | . . . . . . Time . | . . . . . . Total Part Build Rating . | . . . . . . Part Studies Acquired 1 | . . . . . 1 Parts Repaired . | . . . . . . Time . | . . . . . . Parts Recycled . | . . . . . . Recycled Matter . | . . . . . . Retrieved Matter . | . . . . . . Retrieved Components 2 | . . . 2 . . Parts Scanalyzed . | . . . . . . Part Schematics Acquired . | . . . . . . Parts Damaged . | . . . . . . Bothacking | -11 -10 -10 -9 -9 -6 ------------ Run | Yrd Mat Sub Rec Scr Fac Used RIF Installer . | . . . . . . Robots Hacked . | . . . . . . Non-combat . | . . . . . . Combat . | . . . . . . Robot Hacks Applied . | . . . . . . Relay Couplers Released . | . . . . . . Fabnet Peak Effective % . | . . . . . . Robots Rewired . | . . . . . . Allies Hacked . | . . . . . . Hacks Repelled . | . . . . . . Allies | -11 -10 -10 -9 -9 -6 -------- Run | Yrd Mat Sub Rec Scr Fac Total Allies 9 | . . 7 . . 2 Largest Group 5 | . . 5 1 . 2 Highest-Rated Group 95 | . . 95 19 . 64 Highest-Rated Ally 32 | . . 19 19 . 32 Total Orders . | . . . . . . Ally Attacks 34 | . . 25 6 . 3 Total Damage 879 | . . 672 139 . 68 Kills 6 | . . 6 . . . Allies Corrupted . | . . . . . . Allies Melted . | . . . . . . Intel | -11 -10 -10 -9 -9 -6 ------- Run | Yrd Mat Sub Rec Scr Fac Active Infowar (turns) 12361 | 128 1371 4948 1004 2611 2299 Sensors 1797 | . . . . . 1797 Terrain 12332 | 128 1371 4948 1004 2611 2270 Structural 176 | . 176 . . . . Seismic 328 | 114 214 . . . . Triangulation 5 | . . . . . 5 Robot Analysis Total 5 | . 2 . 2 . 1 Derelict Logs Recovered 2 | . . 2 . . . Drone Launches . | . . . . . . Drone Recoveries . | . . . . . . Exploration | -11 -10 -10 -9 -9 -6 ------------- Run | Yrd Mat Sub Rec Scr Fac Turns Passed 12420 | 180 1371 4948 1004 2618 2299 Spaces Moved 6570 | 64 690 1969 509 1383 1955 Core 9 | 9 . . . . . Treads 3839 | 55 690 1969 509 616 . Legs . | . . . . . . Wheels . | . . . . . . Hover 995 | . . . . 767 228 Flight 1727 | . . . . . 1727 Fastest Speed 27 | 50 160 160 160 52 27 Average Speed 109 | 147 160 160 160 101 31 Slowest Speed 160 | 160 160 160 160 160 120 Overloaded Moves . | . . . . . . Propulsion Burnouts . | . . . . . . Robots Hopped . | . . . . . . Potential Cave-ins . | . . . . . . Cave-ins Triggered . | . . . . . . Exploration Rate (%) 72 | 5 94 91 97 90 56 Regions Visited 5 Branch Regions 3 Pre-discovered Areas 5 | . . 2 . . 3 Known Exits Taken 2 | . 1 1 . . . Unknown Exits Taken 3 | 1 . . 1 1 . Scrap Searched 13 | . . 6 . 7 . Spaces Dug 34 | . . 1 . . 33 Terrain Destroyed 34 | . . 1 . . 33 Melee 33 | . . . . . 33 Projectile 1 | . . 1 . . . AOE . | . . . . . . Terrain Rammed . | . . . . . . Walls Destroyed . | . . . . . . Machines Disabled . | . . . . . . Actions | -11 -10 -10 -9 -9 -6 --------- Run | Yrd Mat Sub Rec Scr Fac Total 11289 | 130 870 3607 690 2598 3394 Wait 4213 | 50 102 1463 169 1176 1253 Move 6565 | 63 689 1968 508 1382 1955 Hop . | . . . . . . Pick Up 18 | 1 2 4 . 5 6 Fast Attach 51 | 8 7 8 2 14 12 Attach 7 | . . 2 . 3 2 Detach 12 | . 1 4 1 4 2 Swap 3 | . 1 1 . . 1 Drop 45 | . 8 9 1 14 13 Fire 158 | 8 44 102 4 . . Melee 123 | . . . . . 123 Ram . | . . . . . . Kick . | . . . . . . Crush . | . . . . . . Escape Stasis 4 | . . . . . 4 Rewire . | . . . . . . Trap . | . . . . . . Miscellaneous 90 | . 16 46 5 . 23 Route ------- -11/Scrapyard -10/Materials (discovered 5 exits: *Mat x3 / [*Min] / *Sub) -10/Subcaves (discovered 3 exits: *Mat x2 / *Rec) -9/Recycling (discovered 2 exits: [*Fac] / *Scr) -9/Scraptown (discovered 2 exits: *Fac x2) -6/Factory (discovered 5 exits: *Fac x3 / [*Low x2]) History --------- Turn | Location | Event 5 | -11/Scrapyard | Discovered new exit (range 16) 6 | -11/Scrapyard | Upgraded with Propulsion slot (x1) 6 | -11/Scrapyard | Upgraded with Utility slot (x2) 6 | -11/Scrapyard | Upgraded with Weapon slot (x1) 181 | -11/Scrapyard | Entered Materials 303 | -10/Materials | Discovered new exit (range 16) 315 | -10/Materials | Build established: Mutant 556 | -10/Materials | Discovered new exit (range 13) 891 | -10/Materials | Discovered new exit (range 15) 1084 | -10/Materials | Discovered new exit (range 14) 1140 | -10/Materials | Learned location of 2 exits from Subcaves 1179 | -10/Materials | Identified exit to Materials 1179 | -10/Materials | Identified exit to Subcaves 1208 | -10/Materials | Learned Storage emergency access door positions 1227 | -10/Materials | Learned location of 2 exits from Subcaves 1236 | -10/Materials | Learned 4 Recycling zone layouts 1237 | -10/Materials | Learned location of 1 exit from Storage 1246 | -10/Materials | Learned location of 1 exit from Storage 1552 | -10/Materials | Entered Subcaves 1553 | -10/Subcaves | Approached by a straggling Scientist 1553 | -10/Subcaves | Identified exit to Materials 1553 | -10/Subcaves | Identified exit to Recycling 1554 | -10/Subcaves | Reached level 2 1554 | -10/Subcaves | Upgraded with Utility slot (x1) 1733 | -10/Subcaves | Learned location of Zion (-7) 1733 | -10/Subcaves | Met a Zionite searching for "candidates" 2138 | -10/Subcaves | A Subdweller sparked back to life 2138 | -10/Subcaves | A Subdweller sparked back to life 2196 | -10/Subcaves | Core integrity fell below 50% 2241 | -10/Subcaves | Core integrity fell below 20% 2266 | -10/Subcaves | Found Prototype Power Core 2266 | -10/Subcaves | Identified Meta Core 2268 | -10/Subcaves | Attached Meta Core, gained temporary slots: Propulsion, Utility, Weapon 2367 | -10/Subcaves | Shifting Twisted Machinery released Sub. Monowheel 2367 | -10/Subcaves | Shifting Twisted Machinery released Shrapnel Trap 3133 | -10/Subcaves | Disturbed a concealed Subdweller 3171 | -10/Subcaves | Disturbed a concealed Subdweller 3332 | -10/Subcaves | Visited triangular shrine 3342 | -10/Subcaves | Found Prototype Device 3342 | -10/Subcaves | Identified V3-11A's Pendant 3347 | -10/Subcaves | Befriended Subdweller 3439 | -10/Subcaves | Build established: Gunner 3688 | -10/Subcaves | Disturbed a concealed Subdweller 3762 | -10/Subcaves | Befriended Subdweller 3772 | -10/Subcaves | Befriended Subdweller 3772 | -10/Subcaves | Befriended Subdweller 4230 | -10/Subcaves | Shifting Twisted Machinery released Sub. Monowheel 4529 | -10/Subcaves | A swath of the cavern ceiling suddenly collapsed 4612 | -10/Subcaves | Befriended Subdweller 4696 | -10/Subcaves | Learned location of Mines (-9) 4728 | -10/Subcaves | A swath of the cavern ceiling suddenly collapsed 4794 | -10/Subcaves | Learned Materials trap positions 4841 | -10/Subcaves | Shifting Twisted Machinery released Flamer 4851 | -10/Subcaves | Shifting Twisted Machinery released Mak. Leg 5129 | -10/Subcaves | Visited Clippyterm 5134 | -10/Subcaves | Learned Factory emergency access door positions 5167 | -10/Subcaves | Befriended Subdweller 5167 | -10/Subcaves | Befriended Subdweller 5376 | -10/Subcaves | Visited 4L-MR0's lab 5394 | -10/Subcaves | Found Power Bank 5396 | -10/Subcaves | Attached Power Bank, gained temporary slots: Power x3 5817 | -10/Subcaves | Reached level 3 5819 | -10/Subcaves | Upgraded with Utility slot (x1) 5842 | -10/Subcaves | Lost 3 allies 6290 | -10/Subcaves | Build established: Derelict-Gunner 6500 | -10/Subcaves | Entered Recycling 6500 | -9/Recycling | Accompanied by 1 ally 7220 | -9/Recycling | Discovered new exit (range 15) 7458 | -9/Recycling | Scanned before Scraplab entrance 7494 | -9/Recycling | Discovered new exit (range 5) 7504 | -9/Recycling | Entered Scraptown 7504 | -9/Scraptown | System corruption cleaned by C-Scrubber 7506 | -9/Scraptown | Reached level 4 7591 | -9/Scraptown | Delivered V3-11A's Pendant to T0-NE2 in exchange for information 7696 | -9/Scraptown | Visited UFD Registry 7696 | -9/Scraptown | Registered with UFD as "Shockripper" 7741 | -9/Scraptown | Visited DA-N13 Charitable Foundation 7756 | -9/Scraptown | Found DCF Scrap (30 items) 7802 | -9/Scraptown | Visited Sword Containment 7885 | -9/Scraptown | Delivered Scrap Shield to a Scientist 9172 | -9/Scraptown | Visited Scrap Suit Storage 9217 | -9/Scraptown | Visited Infowarlord's Domain 9227 | -9/Scraptown | Found Exp. Terrain Scanner 9259 | -9/Scraptown | Visited Science Testing Area 9263 | -9/Scraptown | Discovered new exit (range 26) 9284 | -9/Scraptown | Visited Cartography Club 9354 | -9/Scraptown | Found Surveybot 17 Chip 9443 | -9/Scraptown | Visited A0-MCA Data Center 9453 | -9/Scraptown | Given a B rating by A0-MCA 9458 | -9/Scraptown | Found A0-MCA's Component Scanner 9523 | -9/Scraptown | Visited Abandonware Association 9539 | -9/Scraptown | Learned abandonware demo "HACKBUD.EXE" 9539 | -9/Scraptown | Learned abandonware demo "SHUTEYE.EXE" 9581 | -9/Scraptown | Visited Derelict Rescue Squad 9693 | -9/Scraptown | Found Companion Sword 9740 | -9/Scraptown | Visited Shadow of the Wyrm 9750 | -9/Scraptown | Visited Bundlers 9779 | -9/Scraptown | Visited Comm Corps 9805 | -9/Scraptown | Visited The Evicted 9829 | -9/Scraptown | Visited Artisan Demo Area 9847 | -9/Scraptown | Visited Cyclists 9851 | -9/Scraptown | Entered Cyclist Reading Room 9875 | -9/Scraptown | Discovered new exit (range 26) 9940 | -9/Scraptown | Upgraded with Propulsion slot (x1) 9963 | -9/Scraptown | Build established: Derelict-Gladiator 9964 | -9/Scraptown | Heard Great Nut preacher, LISTEN AND RECITE! 10090 | -9/Scraptown | Met Optimus 10090 | -9/Scraptown | Accepted into 0bPrime 10122 | -9/Scraptown | Entered Factory 10124 | -6/Factory | Discovered new exit (range 29) 10124 | -6/Factory | Reached level 5 10127 | -6/Factory | Upgraded with Propulsion slot (x1) 10131 | -6/Factory | Discovered new exit (range 10) 10249 | -6/Factory | Core integrity fell below 50% 10311 | -6/Factory | Core integrity fell below 20% 10370 | -6/Factory | Discovered new exit (range 25) 10619 | -6/Factory | Reached level 6 10622 | -6/Factory | Upgraded with Utility slot (x1) 10909 | -6/Factory | Fabricated Y-54 Guardian? 10926 | -6/Factory | Garrison activated, responded to threat 10931 | -6/Factory | Build established: Scout 11658 | -6/Factory | Discovered new exit (range 27) 11692 | -6/Factory | Learned Extension trap positions 11742 | -6/Factory | Learned Hub_04(d) garrison access intel 11784 | -6/Factory | Loaded intel: 8 recycling unit locations 11817 | -6/Factory | Learned location of 2 exits from Archives 11839 | -6/Factory | Learned 4 Hub_04(d) zone layouts 11849 | -6/Factory | Learned location of 1 exit from Hub_04(d) 11868 | -6/Factory | Learned location of Proximity Caves (-5) 11868 | -6/Factory | Discovered new exit (range 27) 11896 | -6/Factory | Learned location of 1 exit from Proximity Caves 11935 | -6/Factory | Learned 2 Lower Caves zone layouts 11961 | -6/Factory | Loaded intel: 8 recycling unit locations 11972 | -6/Factory | Learned location of Protoforge (-2) 12345 | -6/Factory | Identified exit to Factory 12421 | -6/Factory | Destroyed by Y-54 Guardian with Flak Gun Last Messages --------------- _________ .___.__ .__ ____ __ __. \_ _____/___ __| _/| | | |\ \ | |/ _| | __)/ __ \ / __ | | | | |/ | \| < | \\ ___// /_/ | | |___| / | \ | \ \_ / \___ \____ | |_____ \__\__|_ /__|__ \ \/ \/ \/ \/ \/ v3.71\/ UFD!MEMBER UFD!NETWORK<393> UFD!RESOURCES<40> 0bP!READINESS 0bP!PRIORITY_MSG_OPTIMUS: Thank you for not letting us down, Shockripper, you are a worthy ally. I ask you, what does MC control that gives him power besides resources? UFD!SANITIZING UFD!... 12361_ ALERT: Suspicious activity at Recycling Unit F002. Dispatching Investigation squad. 12398_ K-01 Serf cleans the Neutrino Reactor. 12411_ Y-54 Guardian Imp. Light Armor Plating severed. 12411_ Companion Sword follow-up attack on Y-54 Guardian. Map ----- +----------------------------------------------------+ | # #"""" # " " " " " # | | "" """ # #"""" [ # " " " " " # """ """ | | "" """ # #"""" + " " " " " # """ """ | | "" """ # #"""" # # """ """ | | + #"""" #############" | | #####+## #"""" = ############## | | # #"""" ############## | | "" """ # # ############## ] | | "" """ # ###+############T ##### | | "" """ # *% k""" """ """ | | # == """ """ """ | | "" """ # """ """ """ | | "" """ + | | "" """ # ] | | # ^ ###############################+##### | | # ######################### | | ""Y"" # ######################### | | """"" # # ! ############ | | # # ############ | | ######## + ############ | | ######## < # """ ############ | | ######## # """ //! ############ | | ######## # """ //! ############ | | ############## "" // + + | | ############## "" ;########### | | ############## @############ ! | | ############## " " Y########### ! | | ############## "R" ######################## | | ############## """ ######################## | | ################################################## | | ################# """"""""""" ################## | | ################# """"T"""" ################## | | ################# ################## | | ################# ################## | | ################# ! *################## | | ################# ################## | | ################# """ """ """ ################## | | ################# """ """ """ ################## | | ################# """ """ """ ################## | | ################# ################## | | ########################+#####+################### | | ###################### # ######## | | #########] # # ^ k ######## | | ######### # # """ ######## | | ######### !!! # + """"" "" "" ######## | | ######### !!! + # """"" ""S"" ######## | | ######### !!! # # """" ######## | | ######### # ####################### | | ######### # ####################### | | ######### """""" # ########### | +----------------------------------------------------+ Best States ------------- Heat Dissipation 37 Energy Generation 30 Energy Capacity 250 Matter Stores 400 Matter Capacity 400 Sight Range 16 Robot Scan Range 24 Terrain Scan Range 30 Terrain Scan Density 1510 Additional Mass Support 6 Armor Coverage 800 Evasion (%) 64 Targeting Accuracy 5 Recoil Reduction 2 Defensive Hacking 11 Item Schematics ----------------- None Robot Schematics ------------------ None Fabricated ------------ Y-54 Guardian | x2 | -6/Factory | Preloaded Repaired ---------- Nothing Studied --------- Nuclear Pulse Thruster | -6/Factory | Hacked Alien Tech Used ----------------- None Achievements -------------- None Challenges ------------ None RPGLIKE | -11 -10 -10 -9 -9 -6 --------- Run | Yrd Mat Sub Rec Scr Fac Levels Raised 5 | . . 2 . 1 2 XP Earned 11891 | 3000 1285 1816 1200 900 3690 XP Spent 10495 | 2995 . 2970 . 1525 3005 Upgrades 25 | 11 . 4 . 5 5 Propulsion Slot 3 | 1 . . . 1 1 Utility Slot 5 | 2 . 2 . . 1 Weapon Slot 1 | 1 . . . . . Core Integrity 3 | . . . . 1 2 Heat Dissipation 2 | 1 . 1 . . . Mass Support 1 | . . . . 1 . Inventory Capacity 2 | 1 . . . 1 . Sensor Range 4 | 2 . . . 1 1 Terrain Scan Density 3 | 3 . . . . . Ranged Accuracy 1 | . . 1 . . . Protomatter Created 400 | . 142 92 . . 166 Integrity Restored 1809 | . 277 963 71 . 498 Core 1559 | . 210 831 20 . 498 Parts 250 | . 67 132 51 . . Protomatter Decayed 137 | . 57 80 . . . Game ------ Seed PulseGatlingShockpuncher Manual? 0 Play Time 01:24:09 Cumulative 58.4 hours Start 2025.11.16 @ 17:12:59 End 2025.11.16 @ 18:48:05 Sessions 1 Manual Loads 0 Difficulty Rogue Special Mode Winter2019/RPGLIKE Game No. 59 Rogue 59 Adventurer 0 Explorer 0 Win Type - Total 0 Types 0/0/0/0/0/0/0/0/0/0 Lore% 53 Gallery% 34 Achievement% 32 Wizard Run 0 Options --------- Layout 0 ASCII 0 Keyboard 0 Movement Mouse Keybinds 0 Fullscreen 2 Font 24/Smallcaps Map View 76x50 Zoom Use 0% Tactical HUD 1 Map Filters NONE Filters NONE Steam 1 RUN: 95ba9bd7-b765-486f-bab5-4a52bd353161